fUST/lending_fUST_20240729
["ID","MTS","AMOUNT","RATE_DAILY","PERIOD"]
[333544733,1722239439115,-500.0,0.00014688,2]
[333544734,1722239439126,-500.74989068,0.00014688,2]
[333544735,1722239439136,-234.79330286,0.00014688,2]
[333544736,1722239439145,-500.0,0.00014688,2]
[333544737,1722239439154,-500.0,0.00014688,2]
[333544738,1722239439165,-500.0,0.00014688,2]
[333544739,1722239439175,-500.0,0.00014688,2]
[333544740,1722239439185,-500.0,0.00014688,2]
[333544741,1722239439199,-500.0,0.00014688,2]
[333544742,1722239439208,-521.31423217,0.00014688,2]
[333544743,1722239439218,-500.0,0.00014688,2]
[333544744,1722239439227,-500.0,0.00014688,2]
[333544745,1722239439238,-500.0,0.00014688,2]
[333544746,1722239439248,-500.0,0.00014688,2]
[333544747,1722239439257,-500.0,0.00014688,2]
[333544748,1722239439267,-500.0,0.00014688,2]
[333544749,1722239439279,-503.57049156,0.00014688,2]
[333544750,1722239439289,-500.0,0.00014688,2]
[333544751,1722239439298,-503.93951742,0.00014688,2]
[333544752,1722239439307,-500.0,0.00014688,2]
[333544753,1722239439316,-500.0,0.00014688,2]
[333544754,1722239439326,-475.56671008,0.00014688,2]
[333544755,1722239439335,-504.07197194,0.00014688,2]
[333544756,1722239439345,-500.0,0.00014688,2]
[333544757,1722239439358,-5000.0,0.00014688,2]
[333544758,1722239439367,-500.0,0.00014688,2]
[333544759,1722239439376,-500.0,0.00014688,2]
[333544760,1722239439386,-500.0,0.00014688,2]
[333544761,1722239439395,-500.0,0.00014688,2]
[333544762,1722239439405,-500.0,0.00014688,2]
[333544763,1722239439414,-500.0,0.00014688,2]
[333544764,1722239439425,-500.0,0.00014688,2]
[333544765,1722239439436,-500.0,0.00014688,2]
[333544766,1722239439445,-500.0,0.00014688,2]
[333544767,1722239439456,-500.0,0.00014688,2]
[333544768,1722239439468,-571.4685474,0.00014688,2]
[333544769,1722239439477,-500.0,0.00014688,2]
[333544770,1722239439487,-506.03378128,0.00014688,2]
[333544771,1722239439496,-500.0,0.00014688,2]
[333544772,1722239439506,-500.0,0.00014688,2]
[333544773,1722239439515,-500.0,0.00014688,2]
[333544774,1722239439525,-500.0,0.00014688,2]
[333544775,1722239439535,-500.0,0.00014688,2]
[333544776,1722239439545,-500.0,0.00014688,2]
[333544777,1722239439556,-521.73905724,0.00014688,2]
[333544778,1722239439566,-500.0,0.00014688,2]
[333544779,1722239439576,-500.0,0.00014688,2]
[333544780,1722239439586,-500.0,0.00014688,2]
[333544781,1722239439596,-500.0,0.00014688,2]
[333544782,1722239439611,-503.07611029,0.00014688,2]
[333544783,1722239439622,-153.183534,0.00014688,2]
[333544784,1722239439633,-525.44,0.00014688,2]
[333544785,1722239439644,-500.0,0.00014688,2]
[333544786,1722239439654,-500.0,0.00014688,2]
[333544787,1722239439664,-509.66911467,0.00014688,2]
[333544788,1722239439674,-500.0,0.00014688,2]
[333544789,1722239439684,-500.0,0.00014688,2]
[333544790,1722239439695,-500.0,0.00014688,2]
[333544791,1722239439705,-500.0,0.00014688,2]
[333544792,1722239439716,-500.0,0.00014688,2]
[333544793,1722239439728,-500.0,0.00014688,2]
[333544794,1722239439739,-500.0,0.00014688,2]
[333544795,1722239439749,-520.23699786,0.00014688,2]
[333544796,1722239439759,-500.0,0.00014688,2]
[333544797,1722239439770,-500.0,0.00014688,2]
[333544798,1722239439779,-500.0,0.00014688,2]
[333544799,1722239439788,-508.37579148,0.00014688,2]
[333544800,1722239439798,-502.78747536,0.00014688,2]
[333544801,1722239439807,-500.0,0.00014688,2]
[333544802,1722239439816,-562.90123855,0.00014688,2]
[333544803,1722239439826,-506.1703253,0.00014688,2]
[333544804,1722239439835,-494.93005023,0.00014688,2]
[333544805,1722239439844,-502.04426339,0.00014688,2]
[333544806,1722239439856,-500.0,0.00014688,2]
[333544807,1722239439867,-500.0,0.00014688,2]
[333544808,1722239439876,-500.0,0.00014688,2]
[333544809,1722239439888,-151.0,0.00014688,2]
[333544810,1722239439975,-500.0,0.00014688,2]
[333544811,1722239439985,-151.0,0.00014688,2]
[333544812,1722239439995,-151.0,0.00014688,2]
[333544813,1722239440005,-1022.6713271,0.00014688,2]
[333544814,1722239440014,-500.0,0.00014688,2]
[333544815,1722239440023,-286.9263925,0.00014688,2]
[333544816,1722239440033,-310.09675846,0.00014688,2]
[333544817,1722239440043,-500.0,0.00014688,2]
[333544818,1722239440053,-500.80298381,0.00014688,2]
[333544819,1722239440062,-500.0,0.00014688,2]
[333544820,1722239440071,-248.59972455,0.00014688,2]
[333544821,1722239440080,-500.0,0.00014688,2]
[333544822,1722239440090,-500.0,0.00014688,2]
[333544823,1722239440099,-500.0,0.00014688,2]
[333544824,1722239440109,-500.0,0.00014688,2]
[333544825,1722239440119,-500.0,0.00014688,2]
[333544826,1722239440128,-500.0,0.00014688,2]
[333544827,1722239440137,-500.0,0.00014688,2]
[333544828,1722239440147,-500.0,0.00014688,2]
[333544829,1722239440156,-500.0,0.00014688,2]
[333544830,1722239440166,-500.0,0.00014688,2]
[333544831,1722239440175,-500.0,0.00014688,2]
[333544832,1722239440185,-500.0,0.00014688,2]
[333544833,1722239440194,-500.0,0.00014688,2]
[333544835,1722239440208,-500.0,0.00014688,2]
[333544836,1722239440218,-500.0,0.00014688,2]
[333544839,1722239440228,-500.0,0.00014688,2]
[333544842,1722239440239,-500.0,0.00014688,2]
[333544845,1722239440248,-500.0,0.00014688,2]
[333544847,1722239440257,-500.0,0.00014688,2]
[333544849,1722239440266,-500.72366257,0.00014688,2]
[333544850,1722239440275,-500.0,0.00014688,2]
[333544851,1722239440286,-502.76569526,0.00014688,2]
[333544852,1722239440296,-512.30960775,0.00014688,2]
[333544853,1722239440305,-500.0,0.00014688,2]
[333544854,1722239440315,-500.0,0.00014688,2]
[333544856,1722239440324,-151.0,0.00014688,2]
[333544858,1722239440334,-500.0,0.00014688,2]
[333544860,1722239440344,-500.0,0.00014688,2]
[333544861,1722239440355,-500.0,0.00014688,2]
[333544862,1722239440364,-500.0,0.00014688,2]
[333544863,1722239440373,-455.50447345,0.00014688,2]
[333544864,1722239440383,-500.0,0.00014688,2]
[333544865,1722239440393,-500.0,0.00014688,2]
[333544866,1722239440402,-505.27099133,0.00014688,2]
[333544867,1722239440412,-507.10437537,0.00014688,2]
[333544868,1722239440421,-500.0,0.00014688,2]
[333544869,1722239440430,-500.0,0.00014688,2]
[333544870,1722239440440,-500.0,0.00014688,2]
[333544871,1722239440450,-500.0,0.00014688,2]
[333544872,1722239440459,-500.0,0.00014688,2]
[333544873,1722239440468,-500.0,0.00014688,2]
[333544874,1722239440478,-500.0,0.00014688,2]
[333544875,1722239440487,-500.0,0.00014688,2]
[333544876,1722239440496,-500.0,0.00014688,2]
[333544877,1722239440506,-500.0,0.00014688,2]
[333544878,1722239440515,-500.0,0.00014688,2]
[333544879,1722239440524,-151.0,0.00014688,2]
[333544880,1722239440534,-151.0,0.00014688,2]
[333544881,1722239440543,-151.0,0.00014688,2]
[333544882,1722239440552,-500.0,0.00014688,2]
[333544883,1722239440562,-500.0,0.00014688,2]
[333544884,1722239440572,-500.0,0.00014688,2]
[333544885,1722239440582,-500.0,0.00014688,2]
[333544886,1722239440591,-500.0,0.00014688,2]
[333544887,1722239440601,-500.0,0.00014688,2]
[333544888,1722239440611,-500.0,0.00014688,2]
[333544889,1722239440621,-500.0,0.00014688,2]
[333544890,1722239440630,-500.0,0.00014688,2]
[333544891,1722239440641,-500.0,0.00014688,2]
[333544892,1722239440650,-500.0,0.00014688,2]
[333544893,1722239440660,-500.0,0.00014688,2]
[333544894,1722239440670,-500.0,0.00014688,2]
[333544895,1722239440679,-400.81230328,0.00014688,2]
[333544896,1722239440689,-500.0,0.00014688,2]
[333544898,1722239440699,-151.0,0.00014688,2]
[333544899,1722239440709,-151.0,0.00014688,2]
[333544901,1722239440718,-500.0,0.00014688,2]
[333544902,1722239440728,-500.0,0.00014688,2]
[333544903,1722239440737,-500.0,0.00014688,2]
[333544904,1722239440748,-596.84,0.00014688,2]
[333544905,1722239440757,-500.0,0.00014688,2]
[333544906,1722239440767,-500.0,0.00014688,2]
[333544907,1722239440777,-151.0,0.00014688,2]
[333544908,1722239440786,-151.0,0.00014688,2]
[333544909,1722239440796,-151.0,0.00014688,2]
[333544910,1722239440806,-500.0,0.00014688,2]
[333544911,1722239440815,-500.0,0.00014688,2]
[333544912,1722239440825,-500.0,0.00014688,2]
[333544913,1722239440834,-500.0,0.00014688,2]
[333544914,1722239440844,-500.0,0.00014688,2]
[333544915,1722239440854,-500.0,0.00014688,2]
[333544916,1722239440863,-500.0,0.00014688,2]
[333544917,1722239440873,-500.0,0.00014688,2]
[333544918,1722239440882,-500.0,0.00014688,2]
[333544919,1722239440892,-500.0,0.00014688,2]
[333544921,1722239440902,-500.0,0.00014688,2]
[333544923,1722239440911,-500.0,0.00014688,2]
[333544925,1722239440920,-500.0,0.00014688,2]
[333544928,1722239440934,-500.0,0.00014688,2]
[333544930,1722239440948,-500.0,0.00014688,2]
[333544933,1722239440961,-500.0,0.00014688,2]
[333544935,1722239440973,-500.0,0.00014688,2]
[333544937,1722239440984,-500.0,0.00014688,2]
[333544938,1722239440994,-150.0,0.00014688,2]
[333544939,1722239441007,-1210.9,0.00014688,2]
[333544940,1722239441019,-7862.77,0.00014688,2]
[333544941,1722239441031,-500.0,0.00014688,2]
[333544942,1722239441043,-500.0,0.00014688,2]
[333544943,1722239441055,-516.35547637,0.00014688,2]
[333544944,1722239441067,-500.0,0.00014688,2]
[333544945,1722239441079,-500.0,0.00014688,2]
[333544946,1722239441091,-586.35956034,0.00014688,2]
[333544947,1722239441105,-151.0,0.00014688,2]
[333544948,1722239441117,-151.0,0.00014688,2]
[333544949,1722239441129,-500.0,0.00014688,2]
[333544950,1722239441141,-500.0,0.00014688,2]
[333544951,1722239441152,-500.0,0.00014688,2]
[333544952,1722239441163,-500.0,0.00014688,2]
[333544953,1722239441174,-500.0,0.00014688,2]
[333544954,1722239441186,-151.0,0.00014688,2]
[333544955,1722239441199,-500.0,0.00014688,2]
[333544956,1722239441211,-500.0,0.00014688,2]
[333544957,1722239441223,-500.0,0.00014688,2]
[333544958,1722239441235,-500.0,0.00014688,2]
[333544959,1722239441246,-154.080336,0.00014688,2]
[333544960,1722239441258,-500.0,0.00014688,2]
[333544961,1722239441269,-500.0,0.00014688,2]
[333544962,1722239441280,-500.0,0.00014688,2]
[333544963,1722239441291,-501.2016491,0.00014688,2]
[333544964,1722239441302,-500.0,0.00014688,2]
[333544965,1722239441315,-500.0,0.00014688,2]
[333544966,1722239441325,-500.0,0.00014688,2]
[333544967,1722239441337,-500.0,0.00014688,2]
[333544968,1722239441349,-500.0,0.00014688,2]
[333544969,1722239441361,-500.0,0.00014688,2]
[333544970,1722239441373,-1140.31,0.00014688,2]
[333544971,1722239441384,-503.72263157,0.00014688,2]
[333544972,1722239441395,-500.0,0.00014688,2]
[333544973,1722239441407,-500.0,0.00014688,2]
[333544974,1722239441419,-512.96828789,0.00014688,2]
[333544975,1722239441432,-507.14903014,0.00014688,2]
[333544976,1722239441444,-500.0,0.00014688,2]
[333544977,1722239441455,-500.0,0.00014688,2]
[333544978,1722239441465,-500.0,0.00014688,2]
[333544979,1722239441475,-500.0,0.00014688,2]
[333544980,1722239441485,-500.0,0.00014688,2]
[333544981,1722239441494,-500.0,0.00014688,2]
[333544982,1722239441505,-152.658298,0.00014688,2]
[333544983,1722239441515,-500.0,0.00014688,2]
[333544984,1722239441528,-500.0,0.00014688,2]
[333544985,1722239441539,-151.0,0.00014688,2]
[333544986,1722239441551,-151.0,0.00014688,2]
[333544987,1722239441561,-151.0,0.00014688,2]
[333544988,1722239441571,-510.23796948,0.00014688,2]
[333544989,1722239441583,-500.0,0.00014688,2]
[333544990,1722239441594,-500.0,0.00014688,2]
[333544991,1722239441605,-500.0,0.00014688,2]
[333544992,1722239441617,-500.0,0.00014688,2]
[333544993,1722239441629,-557.57806804,0.00014688,2]
[333544994,1722239441639,-500.0,0.00014688,2]
[333544995,1722239441649,-500.0,0.00014688,2]
[333544996,1722239441661,-500.0,0.00014688,2]
[333544997,1722239441671,-500.0,0.00014688,2]
[333544998,1722239441682,-151.0,0.00014688,2]
[333544999,1722239441692,-151.0,0.00014688,2]
[333545000,1722239441703,-500.0,0.00014688,2]
[333545001,1722239441714,-500.0,0.00014688,2]
[333545002,1722239441725,-500.0,0.00014688,2]
[333545003,1722239441737,-500.0,0.00014688,2]
[333545004,1722239441748,-500.0,0.00014688,2]
[333545005,1722239441759,-500.0,0.00014688,2]
[333545006,1722239441770,-500.0,0.00014688,2]
[333545007,1722239441781,-500.0,0.00014688,2]
[333545008,1722239441792,-500.0,0.00014688,2]
[333545009,1722239441803,-500.0,0.00014688,2]
[333545010,1722239441814,-500.0,0.00014688,2]
[333545011,1722239441825,-503.811983,0.00014688,2]
[333545012,1722239441837,-506.83420962,0.00014688,2]
[333545013,1722239441848,-460.55923258,0.00014688,2]
[333545014,1722239442048,-39.44076742,0.00014688,2]
[333545015,1722239442061,-500.0,0.00014688,2]
[333545016,1722239442172,-500.0,0.00014688,2]
[333545017,1722239442184,-500.0,0.00014688,2]
[333545018,1722239442195,-504.23524958,0.00014688,2]
[333545019,1722239442206,-500.0,0.00014688,2]
[333545020,1722239442215,-837.7,0.00014688,2]
[333545021,1722239442224,-500.0,0.00014688,2]
[333545022,1722239442235,-500.0,0.00014688,2]
[333545023,1722239442246,-326.62585435,0.00014688,2]
[333545024,1722239442255,-502.01566386,0.00014688,2]
[333545025,1722239442264,-508.39921414,0.00014688,2]
[333545026,1722239442273,-500.0,0.00014688,2]
[333545027,1722239442285,-505.14755196,0.00014688,2]
[333545028,1722239442295,-500.0,0.00014688,2]
[333545029,1722239442304,-151.0,0.00014688,2]
[333545030,1722239442313,-500.0,0.00014688,2]
[333545031,1722239442323,-500.0,0.00014688,2]
[333545032,1722239442332,-151.0,0.00014688,2]
[333545033,1722239442341,-151.0,0.00014688,2]
[333545034,1722239442350,-151.0,0.00014688,2]
[333545035,1722239442362,-500.0,0.00014688,2]
[333545036,1722239442371,-507.82082169,0.00014688,2]
[333545037,1722239442380,-565.43,0.00014688,2]
[333545038,1722239442389,-500.0,0.00014688,2]
[333545039,1722239442401,-532.79055912,0.00014688,2]
[333545040,1722239442410,-153.330096,0.00014688,2]
[333545041,1722239442419,-500.0,0.00014688,2]
[333545042,1722239442429,-500.0,0.00014688,2]
[333545043,1722239442440,-500.0,0.00014688,2]
[333545044,1722239442449,-500.0,0.00014688,2]
[333545045,1722239442458,-502.10254578,0.00014688,2]
[333545046,1722239442468,-500.0,0.00014688,2]
[333545047,1722239442477,-332.36427417,0.00014688,2]
[333545048,1722239442487,-500.0,0.00014688,2]
[333545049,1722239442497,-500.0,0.00014688,2]
[333545050,1722239442507,-500.0,0.00014688,2]
[333545051,1722239442516,-500.0,0.00014688,2]
[333545052,1722239442526,-500.0,0.00014688,2]
[333545053,1722239442535,-500.0,0.00014688,2]
[333545054,1722239442545,-500.0,0.00014688,2]
[333545055,1722239442555,-500.0,0.00014688,2]
[333545056,1722239442565,-504.62133,0.00014688,2]
[333545057,1722239442574,-526.24620775,0.00014688,2]
[333545058,1722239442585,-500.0,0.00014688,2]
[333545059,1722239442594,-500.0,0.00014688,2]
[333545060,1722239442603,-500.0,0.00014688,2]
[333545061,1722239442614,-500.0,0.00014688,2]
[333545062,1722239442624,-500.0,0.00014688,2]
[333545063,1722239442633,-500.0,0.00014688,2]
[333545064,1722239442643,-500.0,0.00014688,2]
[333545065,1722239442652,-480.48008704,0.00014688,2]
[333545066,1722239442724,-19.51991296,0.00014688,2]
[333545067,1722239442733,-151.0,0.00014688,2]
[333545068,1722239442742,-847.14,0.00014688,2]
[333545069,1722239442751,-459.126928,0.00014688,2]
[333545070,1722239442761,-459.126928,0.00014688,2]
[333545071,1722239442771,-500.0,0.00014688,2]
[333545072,1722239442780,-500.0,0.00014688,2]
[333545073,1722239442789,-459.126928,0.00014688,2]
[333545074,1722239442798,-151.0,0.00014688,2]
[333545075,1722239442808,-151.0,0.00014688,2]
[333545076,1722239442817,-291.93780751,0.00014688,2]
[333545097,1722239443780,-167.18912049,0.00014688,2]
[333545098,1722239443791,-459.126928,0.00014688,2]
[333545099,1722239443801,-500.0,0.00014688,2]
[333545100,1722239443811,-459.126928,0.00014688,2]
[333545101,1722239443821,-500.0,0.00014688,2]
[333545103,1722239443833,-500.0,0.00014688,2]
[333545104,1722239443843,-500.0,0.00014688,2]
[333545105,1722239443852,-500.0,0.00014688,2]
[333545106,1722239443862,-500.0,0.00014688,2]
[333545107,1722239443872,-500.0,0.00014688,2]
[333545108,1722239443881,-614.24581285,0.00014688,2]
[333545109,1722239443891,-500.0,0.00014688,2]
[333545110,1722239443901,-500.0,0.00014688,2]
[333545111,1722239443912,-500.0,0.00014688,2]
[333545112,1722239443922,-500.0,0.00014688,2]
[333545113,1722239443932,-500.0,0.00014688,2]
[333545114,1722239443943,-500.0,0.00014688,2]
[333545115,1722239443954,-151.0,0.00014688,2]
[333545116,1722239443965,-151.0,0.00014688,2]
[333545117,1722239443975,-501.64656878,0.00014688,2]
[333545118,1722239443985,-301.37802,0.00014688,2]
[333545119,1722239443994,-500.0,0.00014688,2]
[333545120,1722239444005,-500.0,0.00014688,2]
[333545121,1722239444015,-500.0,0.00014688,2]
[333545122,1722239444025,-500.0,0.00014688,2]
[333545123,1722239444035,-500.0,0.00014688,2]
[333545124,1722239444045,-500.0,0.00014688,2]
[333545125,1722239444056,-500.0,0.00014688,2]
[333545126,1722239444066,-500.0,0.00014688,2]
[333545127,1722239444075,-500.0,0.00014688,2]
[333545128,1722239444084,-22874.76483574,0.0001469,2]
[333545149,1722239446823,-5786.12344787,0.0001469,2]
[333545150,1722239447643,-82.63965335,0.0001469,2]
[333545151,1722239447655,-333.3986771,0.0001469,2]
[333545153,1722239598582,154.62117811,9.999e-05,2]
[333545155,1722239613490,155.02279919,9.999e-05,2]
[333545156,1722239628869,210.73995112,9.999e-05,2]
[333545158,1722239659342,3793.76165924,9.999e-05,2]
[333545161,1722239663148,154.92131227,9.999e-05,2]
[333545170,1722239987669,154.93298464,9.999e-05,2]
[333545176,1722240046498,154.69833824,9.999e-05,2]
[333545189,1722240432137,-12726.332853,0.00012977,2]
[333545190,1722240432164,-173.315561,0.00012986,2]
[333545191,1722240432187,-158.551295,0.00013155,2]
[333545192,1722240432226,-158.551295,0.00013498,2]
[333545193,1722240432249,-123.45622087,0.00013508,2]
[333545194,1722240438124,-176.54377913,0.00013508,2]
[333545195,1722240438147,-246.0,0.00013508,2]
[333545196,1722240438172,-158.551295,0.0001384,2]
[333545197,1722240438194,-184.36888988,0.0001423,2]
[333545198,1722240448133,-631.11493991,0.0001423,2]
[333545199,1722240448158,-259.210162,0.00014247,2]
[333545200,1722240448180,-302.329993,0.00014247,2]
[333545201,1722240448202,-129.20543841,0.00014318,2]
[333545202,1722240454202,-370.79456159,0.00014318,2]
[333545203,1722240454224,-500.0,0.00014318,2]
[333545204,1722240454245,-500.0,0.00014318,2]
[333545205,1722240454269,-263.4842282,0.00014318,2]
[333545206,1722240454291,-500.0,0.00014318,2]
[333545207,1722240454312,-500.0,0.00014318,2]
[333545208,1722240454336,-500.0,0.00014318,2]
[333545209,1722240454361,-422.58286616,0.00014319,2]
[333545210,1722240454381,-202.86669858,0.00014319,2]
[333545211,1722240454402,-275.92953677,0.00014319,2]
[333545212,1722240454426,-14755.85402593,0.0001432,2]
[333545218,1722240568191,-278.0,0.00014329,2]
[333545219,1722240568217,-295.80800631,0.00014329,2]
[333545220,1722240568242,-193.15067574,0.00014329,2]
[333545221,1722240568267,-362.60935869,0.00014329,2]
[333545222,1722240568292,-7151.64272766,0.0001433,2]
[333545224,1722240573145,-41478.77501184,0.0001433,2]
[333545282,1722240631874,-218.09499306,0.0001433,2]
[333545284,1722240631884,-216.33440064,0.0001433,2]
[333545293,1722240631974,-26749.3351384,0.0001433,2]
[333545385,1722240636616,155.19557269,9.999e-05,2]
[333545412,1722240638070,-207.06560442,0.00014329,2]
[333545413,1722240638080,-637.73882289,0.0001433,2]
[333545469,1722240682156,155.00618278,9.999e-05,2]
[333545471,1722240716769,154.83726961,9.999e-05,2]
[333545472,1722240730253,182.093151,0.00012986,2]
[333545473,1722240743331,288.38381138,9.999e-05,2]
[333545476,1722240997245,288.38381138,9.999e-05,2]
[333545478,1722241033494,272.09711772,9.999e-05,2]
[333545480,1722241039089,154.69833824,9.999e-05,2]
[333545481,1722241044787,154.88513924,9.999e-05,2]
[333545483,1722241098248,206.76606991,9.999e-05,2]
[333545519,1722241428880,472.43520923,9.999e-05,2]
[333545520,1722241497199,209.999062,9.999e-05,2]
[333545524,1722241551412,-407.49,0.00010959,2]
[333545525,1722241551434,-368.71,0.00010959,2]
[333545526,1722241551457,-21.65505124,0.00010959,2]
[333545527,1722241630445,-285.60494876,0.00010959,2]
[333545528,1722241630466,-256.05,0.00010959,2]
[333545529,1722241630487,-213.37,0.00010959,2]
[333545530,1722241630516,-177.81,0.00010959,2]
[333545531,1722241630543,-889.09,0.00010959,2]
[333545532,1722241630564,-189.1022335,0.00012531,2]
[333545533,1722241630586,-300.0,0.00012877,2]
[333545534,1722241630611,-2376.5839793,0.00012878,2]
[333545535,1722241630632,-192.017591,0.00012986,2]
[333545536,1722241630654,-455.6307467,0.00013193,2]
[333545537,1722241630676,-19938.82766654,0.00013332,2]
[333545538,1722241632115,-863.06841757,0.00013332,2]
[333545539,1722241647096,-4098.10391589,0.00013332,2]
[333545540,1722241647118,-795.28102731,0.00013598,2]
[333545541,1722241647140,-627.0972642,0.00013698,2]
[333545542,1722241647161,-275.58239529,0.00013698,2]
[333545543,1722241652110,-154.78305662,0.00013698,2]
[333545544,1722241652134,-431.446492,0.00013698,2]
[333545545,1722241724554,7696.96071369,0.0001,2]
[333545546,1722241746126,-1485.7122421,0.00013232,2]
[333545547,1722241746153,-153.0,0.000137,2]
[333545548,1722241752295,196.0,0.00012121,2]
[333545587,1722241832497,-500.0,0.00014171,2]
[333545614,1722241838043,-4808.13158001,0.00014171,2]
[333545616,1722241838053,-153.0,0.000142,2]
[333545618,1722241838062,-260.98572873,0.00014215,2]
[333545620,1722241838073,-152.54184496,0.00014241,2]
[333545622,1722241838082,-246.249653,0.00014247,2]
[333545624,1722241838092,-153.0,0.000143,2]
[333545626,1722241838101,-695.87089887,0.000143,2]
[333545628,1722241838110,-438.96808494,0.00014329,2]
[333545630,1722241838121,-301.25581633,0.00014329,2]
[333545632,1722241838130,-568.553508,0.00014329,2]
[333545634,1722241838139,-8381.48315377,0.0001433,2]
[333545649,1722241838290,-14356.00914093,0.0001433,2]
[333545651,1722241838299,-153.0,0.000144,2]
[333545653,1722241838309,-189.2308441,0.000144,2]
[333545655,1722241838318,-8821.64982573,0.000145,7]
[333545657,1722241838327,-978.94480622,0.00014579,2]
[333545659,1722241838336,-150.112233,0.000146,2]
[333545661,1722241838345,-10023.9830435,0.00014673,2]
[333545663,1722241838355,-25240.3463086,0.00014678,2]
[333545665,1722241838366,-25240.3463086,0.0001468,2]
[333545667,1722241838375,-1732.5476523,0.00014688,5]
[333545669,1722241838384,-500.0,0.00014688,2]
[333545671,1722241838394,-500.0,0.00014688,2]
[333545673,1722241838403,-500.0,0.00014688,2]
[333545675,1722241838413,-500.0,0.00014688,2]
[333545677,1722241838422,-1.82983702,0.00014688,2]
[333545747,1722241840260,-498.17016298,0.00014688,2]
[333545748,1722241840270,-500.0,0.00014688,2]
[333545749,1722241840279,-199.4506066,0.00014688,2]
[333545750,1722241840288,-500.0,0.00014688,2]
[333545751,1722241840298,-500.0,0.00014688,2]
[333545752,1722241840308,-268.23930124,0.00014688,2]
[333545992,1722241846300,-231.76069876,0.00014688,2]
[333545994,1722241846311,-500.0,0.00014688,2]
[333545996,1722241846322,-500.0,0.00014688,2]
[333545998,1722241846332,-500.0,0.00014688,2]
[333546000,1722241846343,-228.13718149,0.00014688,2]
[333546002,1722241846354,-500.0,0.00014688,2]
[333546004,1722241846364,-500.0,0.00014688,2]
[333546006,1722241846374,-500.0,0.00014688,2]
[333546008,1722241846383,-500.0,0.00014688,2]
[333546010,1722241846392,-500.0,0.00014688,2]
[333546012,1722241846402,-501.89485632,0.00014688,2]
[333546014,1722241846411,-507.22899256,0.00014688,2]
[333546016,1722241846420,-342.52461219,0.00014688,2]
[333546018,1722241846430,-500.0,0.00014688,2]
[333546020,1722241846440,-500.0,0.00014688,2]
[333546023,1722241846450,-378.77756982,0.00014688,2]
[333546025,1722241846460,-500.0,0.00014688,2]
[333546027,1722241846470,-811.84,0.00014688,2]
[333546029,1722241846480,-500.0,0.00014688,2]
[333546031,1722241846489,-173.64,0.00014688,2]
[333546033,1722241846498,-500.0,0.00014688,2]
[333546035,1722241846508,-500.0,0.00014688,2]
[333546037,1722241846518,-500.0,0.00014688,2]
[333546039,1722241846527,-500.0,0.00014688,2]
[333546041,1722241846537,-500.0,0.00014688,2]
[333546043,1722241846548,-500.0,0.00014688,2]
[333546045,1722241846557,-500.0,0.00014688,2]
[333546047,1722241846569,-500.0,0.00014688,2]
[333546049,1722241846578,-248.11,0.00014688,2]
[333546051,1722241846587,-500.0,0.00014688,2]
[333546053,1722241846597,-260.98265739,0.00014688,2]
[333546055,1722241846606,-500.0,0.00014688,2]
[333546057,1722241846616,-500.0,0.00014688,2]
[333546059,1722241846626,-500.0,0.00014688,2]